[Event "GER-ch Youth U14 2020"]
[Site "Willingen"]
[Date "2020.10.24"]
[Round "7.21"]
[White "Lerchl, Clemens"]
[Black "Wiedersich, Hendryk"]
[Result "1-0"]
[ECO "B84"]
[WhiteElo "1699"]
[BlackElo "1570"]
[Annotator "NA RC"]
[PlyCount "103"]
[EventDate "2020.10.20"]
[EventType "swiss"]
[EventRounds "7"]
[EventCountry "GER"]
[SourceTitle "playchess.com"]
[Source "ChessBase"]
[SourceQuality "1"]
[TimeControl "40/5400+30:1800+30"]

1. e4 {[%emt 0:00:00]} c5 {[%emt 0:00:00]} 2. Nf3 {[%emt 0:00:00]} d6 {[%emt 0:00:00]} 3. d4 {[%emt 0:00:00]} cxd4 {[%emt 0:00:00]} 4. Nxd4 {[%emt 0:00:00]} Nf6 {[%emt 0:00:00]} 5. Nc3 {[%emt 0:00:00]} a6 {[%emt 0:00:07]} 6. Be2 {[%emt 0:00:17]} e6 {[%emt 0:00:31]} 7. O-O {[%emt 0:00:57]} Be7 {[%emt 0:00:29]} 8. Be3 {[%emt 0:00:25]} O-O {[%emt 0:00:32]} 9. a4 {[%emt 0:00:56]} Nc6 {[%emt 0:00:16]} 10. f4 {[%emt 0:01:29]} Qc7 {[%emt 0:02:54]} 11. Bf3 {[%emt 0:01:59]} Rd8 {[%emt 0:02:02]} 12. Kh1 {[%emt 0:10:39]} e5 {[%emt 0:08:10]} 13. Nde2 {[%emt 0:02:08]} Bg4 {[%emt 0:02:40]} 14. Bxg4 {[%emt 0:05:38]} Nxg4 {[%emt 0:00:08]} 15. Nd5 {[%emt 0:01:33]} Nxe3 {[%emt 0:09:19]} 16. Nxc7 {[%emt 0:03:40]} Nxd1 {[%emt 0:00:19]} 17. Raxd1 {[%emt 0:05:53]} Rac8 {[%emt 0:00:32]} 18. Nd5 {[%emt 0:00:13]} b5 {[%emt 0:05:04]} 19. axb5 axb5 {[%emt 0:00:06]} 20. Ra1 {[%emt 0:26:16]} Kf8 {[%emt 0:06:37]} 21. c3 {[%emt 0:03:03]} Ra8 {[%emt 0:03:30]} 22. g3 {[%emt 0:02:14]} Rab8 {[%emt 0:05:00]} 23. Ra6 {[%emt 0:02:02]} Rdc8 {[%emt 0:00:30]} 24. Rd1 {[%emt 0:02:46]} b4 {[%emt 0:03:13]} 25. cxb4 {[%emt 0:05:43]} Nxb4 {[%emt 0:02:27]} 26. Nxe7 {[%emt 0:02:07]} Kxe7 {[%emt 0:00:13]} 27. Raxd6 {[%emt 0:00:10]} Rc2 {[%emt 0:03:03]} 28. R6d2 {[%emt 0:01:46]} exf4 {[%emt 0:01:51]} 29. Nxf4 {[%emt 0:03:42]} Rbc8 {[%emt 0:02:50]} 30. Nd5+ {[%emt 0:05:18]} Nxd5 {[%emt 0:00:13]} 31. exd5 {[%emt 0:00:10]} Kd6 {[%emt 0:00:33]} 32. Kg2 {[%emt 0:00:32]} Rxd2+ {[%emt 0:00:35]} 33. Rxd2 {[%emt 0:00:07]} Rc5 {[%emt 0:00:11]} 34. Kf3 {[%emt 0:00:09]} Rxd5 {[%emt 0:00:12]} 35. Rxd5+ {[%emt 0:00:11]} Kxd5 {[%emt 0:00:06]} 36. Kf4 {[%emt 0:00:16]} h6 {[%emt 0:01:35]} 37. h4 {[%emt 0:03:02]} g6 {[%emt 0:01:01]} 38. b3 {[%emt 0:01:11]} Ke6 {[%emt 0:00:39]} 39. b4 {[%emt 0:00:50]} Kd5 {[%emt 0:00:35]} 40. h5 {[%emt 0:02:02]} Kc4 {[%emt 0:01:54]} 41. Ke5 {[%emt 0:30:40]} Kxb4 {[%emt 0:31:16]} 42. hxg6 {[%emt 0:00:15]} fxg6 {[%emt 0:00:10]} 43. Kf6 {[%emt 0:00:05]} g5 {[%emt 0:00:29]} 44. Kg6 {[%emt 0:00:22]} Kc5 {[%emt 0:00:39]} 45. Kxh6 {[%emt 0:00:07]} g4 {[%emt 0:00:08]} 46. Kg5 {[%emt 0:00:05]} Kd6 {[%emt 0:00:09]} 47. Kxg4 {[%emt 0:00:07]} Ke7 {[%emt 0:00:57]} 48. Kg5 {[%emt 0:00:16]} Kf7 {[%emt 0:01:14]} 49. Kh6 {[%emt 0:00:11]} Kg8 {[%emt 0:00:09]} 50. g4 {[%emt 0:00:04]} Kh8 {[%emt 0:00:48]} 51. Kg6 {[%emt 0:00:27]} Kg8 {[%emt 0:00:07]} 52. g5 {[%emt 0:00:07]} 1-0

[Event "GER-ch Youth U14 2020"]
[Site "Willingen"]
[Date "2020.10.24"]
[Round "7.22"]
[White "Brunner, Alexander"]
[Black "Bock, Marlon"]
[Result "1-0"]
[ECO "D30"]
[WhiteElo "1692"]
[BlackElo "1776"]
[Annotator "NA RC"]
[PlyCount "59"]
[EventDate "2020.10.20"]
[EventType "swiss"]
[EventRounds "7"]
[EventCountry "GER"]
[SourceTitle "playchess.com"]
[Source "ChessBase"]
[SourceQuality "1"]
[TimeControl "40/5400+30:1800+30"]

1. d4 {[%emt 0:00:00]} d5 {[%emt 0:00:00]} 2. c4 {[%emt 0:00:00]} e6 {[%emt 0:00:00]} 3. Nf3 {[%emt 0:00:00]} f5 {[%emt 0:00:06]} 4. Nc3 {[%emt 0:00:43]} Nf6 {[%emt 0:00:29]} 5. Bf4 {[%emt 0:00:20]} c6 {[%emt 0:00:41]} 6. e3 {[%emt 0:00:31]} Be7 {[%emt 0:01:19]} 7. Qc2 {[%emt 0:01:25]} Ne4 {[%emt 0:05:24]} 8. Bd3 {[%emt 0:01:53]} Nd7 {[%emt 0:05:18]} 9. Ne5 {[%emt 0:06:58]} Ndf6 {[%emt 0:05:48]} 10. f3 {[%emt 0:03:57]} Nxc3 {[%emt 0:04:28]} 11. Qxc3 {[%emt 0:03:04]} a5 {[%emt 0:11:10]} 12. c5 {[%emt 0:02:28]} Bd7 {[%emt 0:08:32]} 13. Qc2 {[%emt 0:11:54]} Nh5 {[%emt 0:10:11]} 14. O-O-O {[%emt 0:12:54]} b6 {[%emt 0:08:59]} 15. g4 {[%emt 0:02:39]} Nxf4 {[%emt 0:03:14]} 16. exf4 {[%emt 0:00:13]} g6 {[%emt 0:06:41]} 17. h4 {[%emt 0:09:41]} bxc5 {[%emt 0:05:34]} 18. dxc5 {[%emt 0:00:18]} a4 {[%emt 0:04:48]} 19. h5 {[%emt 0:04:17]} Ra5 {[%emt 0:07:07]} 20. Qh2 {[%emt 0:06:19]} Rxc5+ {[%emt 0:01:34]} 21. Kb1 {[%emt 0:00:01]} g5 {[%emt 0:02:16]} 22. gxf5 {[%emt 0:04:06]} exf5 {[%emt 0:01:07]} 23. fxg5 {[%emt 0:00:19]} Bxg5 {[%emt 0:01:05]} 24. Nxd7 {[%emt 0:00:16]} Kxd7 {[%emt 0:01:39]} 25. Bxf5+ {[%emt 0:00:06]} Ke8 {[%emt 0:00:32]} 26. Qe5+ {[%emt 0:01:00]} Kf7 {[%emt 0:00:11]} 27. Be6+ {[%emt 0:00:12]} Ke7 {[%emt 0:00:53]} 28. Bxd5+ {[%emt 0:00:12]} Kd7 {[%emt 0:00:51]} 29. Be6+ {[%emt 0:00:07]} Ke8 {[%emt 0:00:39]} 30. Rxd8+ {[%emt 0:00:08]} 1-0